Workbook

Sheet Consideraciones

Sheet PART 1
B3: Secretaría de Educación Pública del Estado de Baja California Sur
B4: Dirección de Educación Secundaria
B5: NIVELES DE COMUNICACIÓN Y PARTICIPACIÓN DE ALUMNOS
B6: PRIMER GRADO
G8: PERIODO EVALUACIÓN: | R8: TERCER TRIMESTRE
G9: CICLO ESCOLAR : | R9: 2020-2021
A11: DIRECCIÓN: | G11: DIRECCIÓN DE EDUCACIÓN SECUNDARIA
A12: DIRECTOR: | G12: PROFR. RUMUALDO RAMÍREZ GUTIÉRREZ
A15: COMUNICACIÓN Y PARTICIPACIÓN CON ALUMNOS (Registrar cantidad de alumnos)
A16: MODALIDAD | D16: EXISTENCIA (Alumnos inscritos) | G16: COMUNICACIÓN Y PARTICIPACIÓN SOSTENIDA | K16: % | O16: COMUNICACIÓN Y PARTICIPACIÓN INTERMITENTE | S16: % | W16: COMUNICACIÓN PRÁCTICAMENTE INEXISTENTE | AA16: % | AD16: TOTAL
D17: H | E17: M | F17: T
A18: Grales. | D18: =2718+528 -> 3246 | E18: =2835+616 -> 3451 | F18: =SUM(D18,E18) -> 6697 | G18: =4204+1066 -> 5270 | K18: =IFERROR(G18/F18*100,"") -> 78.69195162 | O18: =1000+72 -> 1072 | S18: =IFERROR(O18/F18*100,"") -> 16.00716739 | W18: =349+6 -> 355 | AA18: =IFERROR(W18/F18*100,"") -> 5.300880991 | AD18: =SUM(G18,O18,W18) -> 6697
A19: Técs. | D19: 2634 | E19: 2605 | F19: =SUM(D19,E19) -> 5239 | G19: 3683 | K19: =IFERROR(G19/F19*100,"") -> 70.29967551 | O19: 1255 | S19: =IFERROR(O19/F19*100,"") -> 23.95495324 | W19: 301 | AA19: =IFERROR(W19/F19*100,"") -> 5.745371254 | AD19: 5239
A20: Telesec. | D20: 929 | E20: 813 | F20: 1742 | G20: 1359 | K20: 78.01377727 | O20: 307 | S20: 17.62342135 | W20: 76 | AA20: 4.362801378 | AD20: 1742
A21: TOTAL | D21: =SUM(D18:D20) -> 6809 | E21: =SUM(E18:E20) -> 6869 | F21: =SUM(F18:F20) -> 13678 | G21: =SUM(G18:J20) -> 10312 | K21: =IFERROR(G21/F21*100,"") -> 75.39113906 | O21: =SUM(O18:R20) -> 2634 | S21: 19.25720135 | W21: =SUM(W18:Z20) -> 732 | AA21: 5.351659599 | AD21: =SUM(G21,O21,W21) -> 13678

Sheet Gráfica PART 1
B3: Secretaría de Educación Pública del Estado de Baja California Sur
B4: Dirección de Educación Secundaria
B5: PRIMER GRADO
B6: PERIODO EVALUACIÓN: | N6: ='PART 1'!R8 -> TERCER TRIMESTRE
B7: CICLO ESCOLAR : | N7: ='PART 1'!R9 -> 2020-2021
A9: DIRECCIÓN: | F9: ='PART 1'!G11 -> DIRECCIÓN DE EDUCACIÓN SECUNDARIA
A10: DIRECTOR: | E10: ='PART 1'!G12 -> PROFR. RUMUALDO RAMÍREZ GUTIÉRREZ
D13: COMUNICACIÓN Y PARTICIPACIÓN SOSTENIDA | E13: COMUNICACIÓN Y PARTICIPACIÓN INTERMITENTE | F13: COMUNICACIÓN PRÁCTICAMENTE INEXISTENTE
D14: ='PART 1'!K21/100 -> 0.7539113906 | E14: ='PART 1'!S21/100 -> 0.1925720135 | F14: ='PART 1'!AA21/100 -> 0.05351659599

Sheet PCI 1
B3: Secretaría de Educación Pública del Estado de Baja California Sur
B4: Dirección de Educación Secundaria
B5: PRIMER GRADO
B7: PERIODO EVALUACIÓN: | G7: ='PART 1'!R8 -> TERCER TRIMESTRE
B8: CICLO ESCOLAR : | G8: ='PART 1'!R9 -> 2020-2021
A10: DIRECCIÓN: | C10: ='PART 1'!G11 -> DIRECCIÓN DE EDUCACIÓN SECUNDARIA
A11: DIRECTOR: | C11: ='Gráfica PART 1'!E10 -> PROFR. RUMUALDO RAMÍREZ GUTIÉRREZ
A13: MODALIDAD | D13: COMUNICACIÓN INTERMITENTE Y BAJA PARTICIPACIÓN EN ACTIVIDADES PROPUESTAS POR EL PROFESOR (Registrar cantidad de alumnos)
D14: Lengua Materna (Español) | E14: Matemáticas | F14: Lengua Extranjera (Inglés) | G14: Ciencias (Biología) | H14: Historia | I14: Geografía | J14: Formación Cívica y Ética | K14: Tecnología | L14: Educación Física | M14: Artes
A15: Grales. | D15: =855+106 -> 961 | E15: =721+94 -> 815 | F15: =733+105 -> 838 | G15: =767+94 -> 861 | H15: =651+112 -> 763 | I15: =575+103 -> 678 | J15: =722+92 -> 814 | K15: =671+95 -> 766 | L15: =585+109 -> 694 | M15: =603+86 -> 689
A16: Técs. | D16: 1075 | E16: 1123 | F16: 1066 | G16: 1239 | H16: 1095 | I16: 1132 | J16: 1091 | K16: 1157 | L16: 1340 | M16: 1211
A17: Telesec. | D17: 312 | E17: 316 | F17: 340 | G17: 324 | H17: 333 | I17: 324 | J17: 329 | K17: 332 | L17: 339 | M17: 336
A18: TOTAL | D18: =SUM(D15:D17) -> 2348 | E18: 2254 | F18: 2244 | G18: 2424 | H18: 2191 | I18: 2134 | J18: 2234 | K18: 2255 | L18: 2373 | M18: 2236
A21: RUBRO PARA IDENTIFICAR LAS CAUSAS SOBRE LA COMUNICACIÓN INTERMITENTE
A23: Señale en orden de importancia las tres principales causas que usted considere que han influido para que los alumnos mantengan una COMUNICACIÓN INTERMITENTE con sus maestras (os). Indique númericamente 1,2,3. | F23: Algunos alumnos se conectan desde un dispositivo móvil como el celular, através de recargas de datos, lo que origina que solo AVECES, y en algunas asignaturas, se puedan conectar para mantener comunicación con sus maestras (os) y envíar las actividades planteadas.
F24: Algunos alumnos trabajan para contribuir a los gastos en el hogar
F25: Las condiciones de movilidad familiar, como el cambio de domicilio, visitar a parientes en horarios de clases, acudir al médico o realizar actividades fuera del hogar (por mencionar algunas), no le permiten al alumno mantenerse conectado regularmente con sus maestras (os) y envíar las actividades planteadas.
F26: Algunos alumnos no tienen acceso a ninguna herramienta de conectividad en el hogar para mantener una comunicación constante con sus maestras (os), por lo que requieren desplazarse a otros sitios donde puedan acceder a ellos, como ir a casa de un familiar, vecino o a un ciber-café para hacer uso de ellas, propiciando que no se mantengan regularmente comunicados.
F27: Algunos alumnos cuentan con una sola herramienta de conectividad en el hogar, y deben compartir su uso con otros integrantes de su familia (por ejemplo, con hermanos que también estudian) generando que no siempre puedan mantenerse conectados con sus maestras (os) y estar al corriente en la entrega de actividades planteadas.
F28: Algunos alumnos tienen todas las facilidades para acceder a las clases con sus maestras(os) y entregar oportunamente las actividades planteadas, pero no tienen el interés personal para hacerlo.
F29: Algunos alumnos se encuentran solos en el hogar durante la elaboración de las actividades planteadas por sus maestras (os), requiriendo de asesoría y supervisión para su elaboración, lo que propicia inseguridad en el envío de las mismas, optando por no mandarlas para su revisión y registro.
F30: Algunos alumnos están padeciendo la ausencia de sus padres o de algún miembro de su familia a causa de enfermedad o la pérdida de un familiar en el hogar.
F31: Algunos alumnos se hacen cargo de sus hermanos menores, al estar ausente los padres por situación laboral u otra índole.
F32: Registre otras causas (si fuera el caso)

Sheet Gráfica PCI 1
B3: Secretaría de Educación Pública del Estado de Baja California Sur
B4: Dirección de Educación Secundaria
B5: PRIMER GRADO
B6: PERIODO EVALUACIÓN: | N6: ='PART 1'!R8 -> TERCER TRIMESTRE
B7: CICLO ESCOLAR : | N7: ='PART 1'!R9 -> 2020-2021
A9: DIRECCIÓN: | F9: ='PART 1'!G11 -> DIRECCIÓN DE EDUCACIÓN SECUNDARIA
A10: DIRECTOR: | E10: ='PCI 1'!C11 -> PROFR. RUMUALDO RAMÍREZ GUTIÉRREZ
B13: Lengua Materna (Español) | C13: Matemáticas | D13: Lengua Extranjera (Inglés) | E13: Ciencias (Biología) | F13: Historia | G13: Geografía | H13: Formación Cívica y Ética | I13: Tecnología | J13: Educación Física | K13: Artes | P13: TOTAL
B14: ='PCI 1'!D18/P14 -> 0.1034680298 | C14: ='PCI 1'!E18/P14 -> 0.09932578328 | D14: ='PCI 1'!F18/P14 -> 0.09888511876 | E14: ='PCI 1'!G18/P14 -> 0.1068170802 | F14: ='PCI 1'!H18/P14 -> 0.09654959679 | G14: ='PCI 1'!I18/P14 -> 0.09403780902 | H14: ='PCI 1'!J18/P14 -> 0.09844445424 | I14: ='PCI 1'!K18/P14 -> 0.09936984973 | J14: ='PCI 1'!L18/P14 -> 0.1045696911 | K14: ='PCI 1'!M18/P14 -> 0.09853258714 | P14: =SUM('PCI 1'!D18:P18) -> 22693

Sheet PART 2
B3: Secretaría de Educación Pública del Estado de Baja California Sur
B4: Dirección de Educación Secundaria
B5: NIVELES DE COMUNICACIÓN Y PARTICIPACIÓN DE ALUMNOS
B6: SEGUNDO GRADO
G8: PERIODO EVALUACIÓN: | R8: ='PART 1'!R8 -> TERCER TRIMESTRE
G9: CICLO ESCOLAR : | R9: ='PART 1'!R9 -> 2020-2021
A11: DIRECCIÓN: | G11: ='PART 1'!G11 -> DIRECCIÓN DE EDUCACIÓN SECUNDARIA
A12: DIRECTOR: | G12: ='Gráfica PCI 1'!E10 -> PROFR. RUMUALDO RAMÍREZ GUTIÉRREZ
A15: COMUNICACIÓN Y PARTICIPACIÓN CON ALUMNOS (Registrar cantidad de alumnos)
A16: GRUPO | D16: EXISTENCIA (Alumnos inscritos) | G16: COMUNICACIÓN Y PARTICIPACIÓN SOSTENIDA | K16: % | O16: COMUNICACIÓN Y PARTICIPACIÓN INTERMITENTE | S16: % | W16: COMUNICACIÓN PRÁCTICAMENTE INEXISTENTE | AA16: % | AD16: TOTAL
D17: H | E17: M | F17: T
A18: Grales. | D18: =2611+572 -> 3183 | E18: =2661+610 -> 3271 | F18: =SUM(D18,E18) -> 6454 | G18: =3849+1120 -> 4969 | K18: =IFERROR(G18/F18*100,"") -> 76.99101333 | O18: =1060+56 -> 1116 | S18: =IFERROR(O18/F18*100,"") -> 17.29160211 | W18: =363+6 -> 369 | AA18: =IFERROR(W18/F18*100,"") -> 5.717384568 | AD18: =SUM(G18,O18,W18) -> 6454
A19: Técs. | D19: 2635 | E19: 2528 | F19: =SUM(D19,E19) -> 5163 | G19: 3507 | K19: =IFERROR(G19/F19*100,"") -> 67.92562464 | O19: 1247 | S19: =IFERROR(O19/F19*100,"") -> 24.15262444 | W19: 409 | AA19: =IFERROR(W19/F19*100,"") -> 7.92175092 | AD19: 5163
A20: Telesec. | D20: 838 | E20: 849 | F20: 1687 | G20: 1289 | K20: 76.40782454 | O20: 325 | S20: 19.2649674 | W20: 73 | AA20: 4.327208062 | AD20: 1687
A21: TOTAL | D21: =SUM(D18:D20) -> 6656 | E21: =SUM(E18:E20) -> 6648 | F21: =SUM(F18:F20) -> 13304 | G21: =SUM(G18:J20) -> 9765 | K21: 73.39897775 | O21: =SUM(O18:R20) -> 2688 | S21: 20.20444979 | W21: =SUM(W18:Z20) -> 851 | AA21: 6.396572459 | AD21: =SUM(G21,O21,W21) -> 13304

Sheet Gráfica PART 2
B3: Secretaría de Educación Pública del Estado de Baja California Sur
B4: Dirección de Educación Secundaria
B5: SEGUNDO GRADO
B6: PERIODO EVALUACIÓN: | N6: ='PART 1'!R8 -> TERCER TRIMESTRE
B7: CICLO ESCOLAR : | N7: ='PART 1'!R9 -> 2020-2021
A9: DIRECCIÓN: | F9: ='PART 1'!G11 -> DIRECCIÓN DE EDUCACIÓN SECUNDARIA
A10: DIRECTOR: | E10: ='PART 2'!G12 -> PROFR. RUMUALDO RAMÍREZ GUTIÉRREZ
D13: COMUNICACIÓN Y PARTICIPACIÓN SOSTENIDA | E13: COMUNICACIÓN Y PARTICIPACIÓN INTERMITENTE | F13: COMUNICACIÓN PRÁCTICAMENTE INEXISTENTE
D14: ='PART 2'!K21/100 -> 0.7339897775 | E14: ='PART 2'!S21/100 -> 0.2020444979 | F14: ='PART 2'!AA21/100 -> 0.06396572459

Sheet PCI 2
B3: Secretaría de Educación Pública del Estado de Baja California Sur
B4: Dirección de Educación Secundaria
B5: SEGUNDO GRADO
B7: PERIODO EVALUACIÓN: | G7: ='PART 1'!R8 -> TERCER TRIMESTRE
B8: CICLO ESCOLAR : | G8: ='PART 1'!R9 -> 2020-2021
A10: DIRECCIÓN: | C10: ='PART 1'!G11 -> DIRECCIÓN DE EDUCACIÓN SECUNDARIA
A11: DIRECTOR: | C11: ='Gráfica PART 2'!E10 -> PROFR. RUMUALDO RAMÍREZ GUTIÉRREZ
A13: MODALIDAD | D13: COMUNICACIÓN INTERMITENTE Y BAJA PARTICIPACIÓN EN ACTIVIDADES PROPUESTAS POR EL PROFESOR (Registrar cantidad de alumnos)
D14: Lengua Materna (Español) | E14: Matemáticas | F14: Lengua Extranjera (Inglés) | G14: Ciencias (Física) | H14: Historia | I14: Formación Cívica y Ética | K14: Tecnología | L14: Educación Física | M14: Artes
A15: Grales. | D15: =825+101 -> 926 | E15: =806+69 -> 875 | F15: =775+70 -> 845 | G15: =737+75 -> 812 | H15: =735+90 -> 825 | I15: =729+65 -> 794 | K15: =749+75 -> 824 | L15: =642+73 -> 715 | M15: =794+65 -> 859
A16: Técs. | D16: 1280 | E16: 1320 | F16: 1217 | G16: 1218 | H16: 1072 | I16: 1103 | K16: 1256 | L16: 1250 | M16: 1342
A17: Telesec. | D17: 341 | E17: 349 | F17: 354 | G17: 359 | H17: 358 | I17: 347 | K17: 345 | L17: 352 | M17: 358
A18: TOTAL | D18: =SUM(D15:D17) -> 2547 | E18: =SUM(E15:E17) -> 2544 | F18: =SUM(F15:F17) -> 2416 | G18: =SUM(G15:G17) -> 2389 | H18: =SUM(H15:H17) -> 2255 | I18: =SUM(I15:J17) -> 2244 | K18: =SUM(K15:K17) -> 2425 | L18: =SUM(L15:L17) -> 2317 | M18: =SUM(M15:M17) -> 2559
A21: RUBRO PARA IDENTIFICAR LAS CAUSAS SOBRE LA COMUNICACIÓN INTERMITENTE
A23: Señale en orden de importancia las tres principales causas que usted considere que han influido para que los alumnos mantengan una COMUNICACIÓN INTERMITENTE con sus maestras (os). Indique númericamente 1,2,3. | F23: Algunos alumnos se conectan desde un dispositivo móvil como el celular, através de recargas de datos, lo que origina que solo AVECES, y en algunas asignaturas, se puedan conectar para mantener comunicación con sus maestras (os) y envíar las actividades planteadas.
F24: Algunos alumnos trabajan para contribuir a los gastos en el hogar
F25: Las condiciones de movilidad familiar, como el cambio de domicilio, visitar a parientes en horarios de clases, acudir al médico o realizar actividades fuera del hogar (por mencionar algunas), no le permiten al alumno mantenerse conectado regularmente con sus maestras (os) y envíar las actividades planteadas.
F26: Algunos alumnos no tienen acceso a ninguna herramienta de conectividad en el hogar para mantener una comunicación constante con sus maestras (os), por lo que requieren desplazarse a otros sitios donde puedan acceder a ellos, como ir a casa de un familiar, vecino o a un ciber-café para hacer uso de ellas, propiciando que no se mantengan regularmente comunicados.
F27: Algunos alumnos cuentan con una sola herramienta de conectividad en el hogar, y deben compartir su uso con otros integrantes de su familia (por ejemplo, con hermanos que también estudian) generando que no siempre puedan mantenerse conectados con sus maestras (os) y estar al corriente en la entrega de actividades planteadas.
F28: Algunos alumnos tienen todas las facilidades para acceder a las clases con sus maestras(os) y entregar oportunamente las actividades planteadas, pero no tienen el interés personal para hacerlo.
F29: Algunos alumnos se encuentran solos en el hogar durante la elaboración de las actividades planteadas por sus maestras (os), requiriendo de asesoría y supervisión para su elaboración, lo que propicia inseguridad en el envío de las mismas, optando por no mandarlas para su revisión y registro.
F30: Algunos alumnos están padeciendo la ausencia de sus padres o de algún miembro de su familia a causa de enfermedad o la pérdida de un familiar en el hogar.
F31: Algunos alumnos se hacen cargo de sus hermanos menores, al estar ausente los padres por situación laboral u otra índole.
F32: Registre otras causas (si fuera el caso)

Sheet Gráfica PCI 2
B3: Secretaría de Educación Pública del Estado de Baja California Sur
B4: Dirección de Educación Secundaria
B5: SEGUNDO GRADO
B6: PERIODO EVALUACIÓN: | N6: ='PART 1'!R8 -> TERCER TRIMESTRE
B7: CICLO ESCOLAR : | N7: ='PART 1'!R9 -> 2020-2021
A9: DIRECCIÓN: | F9: ='PART 1'!G11 -> DIRECCIÓN DE EDUCACIÓN SECUNDARIA
A10: DIRECTOR: | E10: ='PCI 2'!C11 -> PROFR. RUMUALDO RAMÍREZ GUTIÉRREZ
B13: Lengua Materna (Español) | C13: Matemáticas | D13: Lengua Extranjera (Inglés) | E13: Ciencias (Física) | F13: Historia | G13: Formación Cívica y Ética | H13: Tecnología | I13: Educación Física | J13: Artes | O13: TOTAL
B14: ='PCI 2'!D18/O14 -> 0.1173949115 | C14: ='PCI 2'!E18/O14 -> 0.1172566372 | D14: ='PCI 2'!F18/O14 -> 0.1113569322 | E14: ='PCI 2'!G18/O14 -> 0.1101124631 | F14: ='PCI 2'!H18/O14 -> 0.1039362094 | G14: ='PCI 2'!I18/O14 -> 0.1034292035 | H14: ='PCI 2'!K18/O14 -> 0.1117717552 | I14: ='PCI 2'!L18/O14 -> 0.1067938791 | J14: ='PCI 2'!M18/O14 -> 0.1179480088 | O14: =SUM('PCI 2'!D18:P18) -> 21696

Sheet PART 3
B3: Secretaría de Educación Pública del Estado de Baja California Sur
B4: Dirección de Educación Secundaria
B5: NIVELES DE COMUNICACIÓN Y PARTICIPACIÓN DE ALUMNOS
B6: TERCER GRADO
G8: PERIODO EVALUACIÓN: | R8: ='PART 1'!R8 -> TERCER TRIMESTRE
G9: CICLO ESCOLAR : | R9: ='PART 1'!R9 -> 2020-2021
A11: DIRECCIÓN: | G11: ='PART 1'!G11 -> DIRECCIÓN DE EDUCACIÓN SECUNDARIA
A12: DIRECTOR: | G12: ='Gráfica PCI 2'!E10 -> PROFR. RUMUALDO RAMÍREZ GUTIÉRREZ
A15: COMUNICACIÓN Y PARTICIPACIÓN CON ALUMNOS (Registrar cantidad de alumnos)
A16: MODALIDAD | D16: EXISTENCIA (Alumnos inscritos) | G16: COMUNICACIÓN Y PARTICIPACIÓN SOSTENIDA | K16: % | O16: COMUNICACIÓN Y PARTICIPACIÓN INTERMITENTE | S16: % | W16: COMUNICACIÓN PRÁCTICAMENTE INEXISTENTE | AA16: % | AD16: TOTAL
D17: H | E17: M | F17: T
A18: Grales. | D18: =2646+532 -> 3178 | E18: =2449+568 -> 3017 | F18: =SUM(D18,E18) -> 6195 | G18: =3671+1042 -> 4713 | K18: =IFERROR(G18/F18*100,"") -> 76.07748184 | O18: =1252+56 -> 1308 | S18: =IFERROR(O18/F18*100,"") -> 21.11380145 | W18: =172+2 -> 174 | AA18: =IFERROR(W18/F18*100,"") -> 2.808716707 | AD18: =SUM(G18,O18,W18) -> 6195
A19: Técs. | D19: 2507 | E19: 2504 | F19: =SUM(D19,E19) -> 5011 | G19: 3551 | K19: =IFERROR(G19/F19*100,"") -> 70.86409898 | O19: 1222 | S19: =IFERROR(O19/F19*100,"") -> 24.38635003 | W19: 238 | AA19: =IFERROR(W19/F19*100,"") -> 4.749550988 | AD19: 5011
A20: Telesec. | D20: 774 | E20: 695 | F20: 1469 | G20: 1150 | K20: 78.28454731 | O20: 275 | S20: 18.72021784 | W20: 44 | AA20: 2.995234854 | AD20: 1469
A21: TOTAL | D21: =SUM(D18:D20) -> 6459 | E21: =SUM(E18:E20) -> 6216 | F21: =SUM(F18:F20) -> 12675 | G21: =SUM(G18:J20) -> 9414 | K21: 74.27218935 | O21: =SUM(O18:R20) -> 2805 | S21: 22.13017751 | W21: =SUM(W18:Z20) -> 456 | AA21: 3.597633136 | AD21: =SUM(G21,O21,W21) -> 12675

Sheet Gráfica PART 3
B3: Secretaría de Educación Pública del Estado de Baja California Sur
B4: Dirección de Educación Secundaria
B5: TERCER GRADO
B6: PERIODO EVALUACIÓN: | N6: ='PART 1'!R8 -> TERCER TRIMESTRE
B7: CICLO ESCOLAR : | N7: ='PART 1'!R9 -> 2020-2021
A9: DIRECCIÓN: | F9: ='PART 1'!G11 -> DIRECCIÓN DE EDUCACIÓN SECUNDARIA
A10: DIRECTOR: | E10: ='PART 3'!G12 -> PROFR. RUMUALDO RAMÍREZ GUTIÉRREZ
D13: COMUNICACIÓN Y PARTICIPACIÓN SOSTENIDA | E13: COMUNICACIÓN Y PARTICIPACIÓN INTERMITENTE | F13: COMUNICACIÓN PRÁCTICAMENTE INEXISTENTE
D14: ='PART 3'!K21/100 -> 0.7427218935 | E14: ='PART 3'!S21/100 -> 0.2213017751 | F14: ='PART 3'!AA21/100 -> 0.03597633136

Sheet PCI 3
B3: Secretaría de Educación Pública del Estado de Baja California Sur
B4: Dirección de Educación Secundaria
B5: TERCER GRADO
B7: PERIODO EVALUACIÓN: | G7: ='PART 1'!R8 -> TERCER TRIMESTRE
B8: CICLO ESCOLAR : | G8: ='PART 1'!R9 -> 2020-2021
A10: DIRECCIÓN: | C10: ='PART 1'!G11 -> DIRECCIÓN DE EDUCACIÓN SECUNDARIA
A11: DIRECTOR: | C11: ='Gráfica PART 3'!E10 -> PROFR. RUMUALDO RAMÍREZ GUTIÉRREZ
A13: MODALIDAD | D13: COMUNICACIÓN INTERMITENTE Y BAJA PARTICIPACIÓN EN ACTIVIDADES PROPUESTAS POR EL PROFESOR (Registrar cantidad de alumnos)
D14: Español III | E14: Matemáticas III | F14: Segunda Lengua: Inglés III | G14: Ciencias III (Énfasis en Química) | H14: Historia II | I14: Formación Cívica y Ética II | K14: Tecnología | L14: Educación Física | M14: Artes
A15: Grales. | D15: =763+73 -> 836 | E15: =927+82 -> 1009 | F15: =789+66 -> 855 | G15: =863+70 -> 933 | H15: =666+87 -> 753 | I15: =843+69 -> 912 | K15: =817+78 -> 895 | L15: =802+74 -> 876 | M15: =925+57 -> 982
A16: Técs. | D16: 1145 | E16: 1321 | F16: 1082 | G16: 1349 | H16: 1235 | I16: 1171 | K16: 1292 | L16: 1164 | M16: 1438
A17: Telesec. | D17: 288 | E17: 300 | F17: 296 | G17: 307 | H17: 311 | I17: 297 | K17: 302 | L17: 311 | M17: 289
A18: TOTAL | D18: =SUM(D15:D17) -> 2269 | E18: =SUM(E15:E17) -> 2630 | F18: =SUM(F15:F17) -> 2233 | G18: =SUM(G15:G17) -> 2589 | H18: =SUM(H15:H17) -> 2299 | I18: =SUM(I15:J17) -> 2380 | K18: =SUM(K15:K17) -> 2489 | L18: =SUM(L15:L17) -> 2351 | M18: =SUM(M15:M17) -> 2709
A21: RUBRO PARA IDENTIFICAR LAS CAUSAS SOBRE LA COMUNICACIÓN INTERMITENTE
A23: Señale en orden de importancia las tres principales causas que usted considere que han influido para que los alumnos mantengan una COMUNICACIÓN INTERMITENTE con sus maestras (os). Indique númericamente 1,2,3. | F23: Algunos alumnos se conectan desde un dispositivo móvil como el celular, através de recargas de datos, lo que origina que solo AVECES, y en algunas asignaturas, se puedan conectar para mantener comunicación con sus maestras (os) y envíar las actividades planteadas.
F24: Algunos alumnos trabajan para contribuir a los gastos en el hogar
F25: Las condiciones de movilidad familiar, como el cambio de domicilio, visitar a parientes en horarios de clases, acudir al médico o realizar actividades fuera del hogar (por mencionar algunas), no le permiten al alumno mantenerse conectado regularmente con sus maestras (os) y envíar las actividades planteadas.
F26: Algunos alumnos no tienen acceso a ninguna herramienta de conectividad en el hogar para mantener una comunicación constante con sus maestras (os), por lo que requieren desplazarse a otros sitios donde puedan acceder a ellos, como ir a casa de un familiar, vecino o a un ciber-café para hacer uso de ellas, propiciando que no se mantengan regularmente comunicados.
F27: Algunos alumnos cuentan con una sola herramienta de conectividad en el hogar, y deben compartir su uso con otros integrantes de su familia (por ejemplo, con hermanos que también estudian) generando que no siempre puedan mantenerse conectados con sus maestras (os) y estar al corriente en la entrega de actividades planteadas.
F28: Algunos alumnos tienen todas las facilidades para acceder a las clases con sus maestras(os) y entregar oportunamente las actividades planteadas, pero no tienen el interés personal para hacerlo.
F29: Algunos alumnos se encuentran solos en el hogar durante la elaboración de las actividades planteadas por sus maestras (os), requiriendo de asesoría y supervisión para su elaboración, lo que propicia inseguridad en el envío de las mismas, optando por no mandarlas para su revisión y registro.
F30: Algunos alumnos están padeciendo la ausencia de sus padres o de algún miembro de su familia a causa de enfermedad o la pérdida de un familiar en el hogar.
F31: Algunos alumnos se hacen cargo de sus hermanos menores, al estar ausente los padres por situación laboral u otra índole.
F32: Registre otras causas (si fuera el caso)

Sheet Gráfica PCI 3
B3: Secretaría de Educación Pública del Estado de Baja California Sur
B4: Dirección de Educación Secundaria
B5: TERCER GRADO
B6: PERIODO EVALUACIÓN: | N6: ='PART 1'!R8 -> TERCER TRIMESTRE
B7: CICLO ESCOLAR : | N7: ='PART 1'!R9 -> 2020-2021
A9: DIRECCIÓN: | F9: ='PART 1'!G11 -> DIRECCIÓN DE EDUCACIÓN SECUNDARIA
A10: DIRECTOR: | E10: ='PCI 3'!C11 -> PROFR. RUMUALDO RAMÍREZ GUTIÉRREZ
B13: Español III | C13: Matemáticas III | D13: Segunda Lengua: Inglés III | E13: Ciencias III (Énfasis en Química) | F13: Historia II | G13: Formación Cívica y Ética II | H13: Tecnología | I13: Educación Física | J13: Artes | P13: TOTAL
B14: ='PCI 3'!D18/P14 -> 0.103376008 | C14: ='PCI 3'!E18/P14 -> 0.1198232266 | D14: ='PCI 3'!F18/P14 -> 0.1017358422 | E14: ='PCI 3'!G18/P14 -> 0.1179552599 | F14: ='PCI 3'!H18/P14 -> 0.1047428129 | G14: ='PCI 3'!I18/P14 -> 0.108433186 | H14: ='PCI 3'!K18/P14 -> 0.1133992437 | I14: ='PCI 3'!L18/P14 -> 0.1071119413 | J14: ='PCI 3'!M18/P14 -> 0.1234224794 | P14: =SUM('PCI 3'!D18:P18) -> 21949
